{"text_format":"1","workbook":"xlsx","n_sheets":3,"sheets":["Sheet1","Project budget","INFO"],"not_rendered":{"charts":0,"images":4,"macros":1,"external_links":1,"defined_names":11,"comments":0,"pivot_tables":0},"unopened":[],"bounds":{"document_bytes":16777216,"sheet_cells":100000,"rows_first":2000,"rows_last":500,"rows_between":2000,"halvings":0,"cell_chars":16384,"cell_head_chars":4096},"cells_cut":0,"cells_raw":0,"read":"whole","date_system":"1900"}

{"sheet":"Sheet1","index":0,"n_rows":0,"n_cols":0,"rows_kept":0,"cut":false,"hidden":false,"merged":[]}

{"sheet":"Project budget","index":1,"n_rows":115,"n_cols":152,"rows_kept":115,"cut":false,"hidden":false,"merged":[[47,2,47,8],[63,2,63,20],[101,5,101,6],[106,2,106,3],[111,2,111,3],[113,2,113,3],[107,2,107,3],[108,2,108,3],[112,2,112,3],[110,2,110,3],[109,2,109,3],[13,7,15,16],[101,2,101,3],[95,5,95,6],[98,5,98,6],[99,5,99,6],[100,5,100,6],[98,2,98,3],[96,2,96,3],[14,3,14,6],[95,2,95,3],[13,3,13,6],[97,2,97,3],[96,5,96,6],[97,5,97,6],[32,2,32,6],[17,2,17,5],[89,11,89,12],[89,14,89,15],[89,17,89,18],[99,2,99,3],[100,2,100,3],[93,2,93,7],[114,9,114,10],[104,2,104,10],[110,21,112,21],[110,22,112,22],[110,23,112,23],[106,9,106,10],[107,9,107,10],[108,9,108,10],[109,9,109,10],[110,9,110,10],[111,9,111,10],[112,9,112,10],[113,9,113,10],[114,2,114,3]]}
[]
[null,null,null,null,null,null,null,null,null,null,"F-SEE-137/09.2019",null,null,null,null,null,null,null,null,null,null,null,null,null,null,null,null,null,null,null,null,null,null,null,null,null,null,null,null,null,null,null,null,null,null,null,null,null,null,null,null,null,null,null,null,null,null,null,null,null,null,null,null,null,null,null,null,null,null,null,null,null,null,null,null,null,null,null,null,null,null,null,null,null,null,null,null,null,null,null,null,null,null,null,null,null,null,null,null,null,null,null,null,null,null,null,null,null,null,null,null,null,null,null,null,null,null,null,null,null,null,null,null,null,null,null,null,null,null,null,null,null,null,null,null,null,null,null,null,null,"Director/Project manager","Code ","Yes",null,"M"]
[null,null,null,null,null,null,null,null,null,null,null,null,null,null,null,null,null,null,null,null,null,null,null,null,null,null,null,null,null,null,null,null,null,null,null,null,null,null,null,null,null,null,null,null,null,null,null,null,null,null,null,null,null,null,null,null,null,null,null,null,null,null,null,null,null,null,null,null,null,null,null,null,null,null,null,null,null,null,null,null,null,null,null,null,null,null,null,null,null,null,null,null,null,null,null,null,null,null,null,null,null,null,null,null,null,null,null,null,null,null,null,null,null,null,null,null,null,null,null,null,null,null,null,null,null,null,null,null,null,null,null,null,null,null,null,null,null,null,null,null,"Researcher/Teacher/Trainer",null,"No",null,"F",null,null,null,null,"100-499 km","D1",180]
[null,null,null,null,null,null,null,null,null,null,null,null,null,null,null,null,null,null,null,null,null,null,null,null,null,null,null,null,null,null,null,null,null,null,null,null,null,null,null,null,null,null,null,null,null,null,null,null,null,null,null,null,null,null,null,null,null,null,null,null,null,null,null,null,null,null,null,null,null,null,null,null,null,null,null,null,null,null,null,null,null,null,null,null,null,null,null,null,null,null,null,null,null,null,null,null,null,null,null,null,null,null,null,null,null,null,null,null,null,null,null,null,null,null,null,null,null,null,null,null,null,null,null,null,null,null,null,null,null,null,null,null,null,null,null,null,null,null,null,null,"Technical",null,null,null,null,null,null,null,null,"500-1999 km","D2",275]
[null,null,null,null,null,null,null,null,null,null,null,null,null,null,null,null,null,null,null,null,null,null,null,null,null,null,null,null,null,null,null,null,null,null,null,null,null,null,null,null,null,null,null,null,null,null,null,null,null,null,null,null,null,null,null,null,null,null,null,null,null,null,null,null,null,null,null,null,null,null,null,null,null,null,null,null,null,null,null,null,null,null,null,null,null,null,null,null,null,null,null,null,null,null,null,null,null,null,null,null,null,null,null,null,null,null,null,null,null,null,null,null,null,null,null,null,null,null,null,null,null,null,null,null,null,null,null,null,null,null,null,null,null,null,null,null,null,null,null,null,"Administrative",null,null,null,null,null,null,null,null,"2000-2999 km","D3",360]
[null,null,null,null,null,null,null,null,null,null,null,null,null,null,null,null,null,null,null,null,null,null,null,null,null,null,null,null,null,null,null,null,null,null,null,null,null,null,null,null,null,null,null,null,null,null,null,null,null,null,null,null,null,null,null,null,null,null,null,null,null,null,null,null,null,null,null,null,null,null,null,null,null,null,null,null,null,null,null,null,null,null,null,null,null,null,null,null,null,null,null,null,null,null,null,null,null,null,null,null,null,null,null,null,null,null,null,null,null,null,null,null,null,null,null,null,null,null,null,null,null,null,null,null,null,null,null,null,null,null,null,null,null,null,null,null,null,null,null,null,null,null,null,null,null,null,"Institution Role",null,null,"3000-3999 km","D4",530]
[null,null,null,null,null,null,null,null,null,null,null,null,null,null,null,null,null,null,null,null,null,null,null,null,null,null,null,null,null,null,null,null,null,null,null,null,null,null,null,null,null,null,null,null,null,null,null,null,null,null,null,null,null,null,null,null,null,null,null,null,null,null,null,null,null,null,null,null,null,null,null,null,null,null,null,null,null,null,null,null,null,null,null,null,null,null,null,null,null,null,null,null,null,null,null,null,null,null,null,null,null,null,null,null,null,null,null,null,null,null,null,null,null,null,null,null,null,null,null,null,null,null,null,null,null,null,null,null,null,null,null,null,null,null,null,null,null,null,null,null,"Country",null,null,null,null,null,"Project Promoter",null,null,"4000-7999 km","D5",820]
[null,null,null,null,null,null,null,null,null,null,null,null,null,null,null,null,null,null,null,null,null,null,null,null,null,null,null,null,null,null,null,null,null,null,null,null,null,null,null,null,null,null,null,null,null,null,null,null,null,null,null,null,null,null,null,null,null,null,null,null,null,null,null,null,null,null,null,null,null,null,null,null,null,null,null,null,null,null,null,null,null,null,null,null,null,null,null,null,null,null,null,null,null,null,null,null,null,null,null,null,null,null,null,null,null,null,null,null,null,null,null,null,null,null,null,null,null,null,null,null,null,null,null,null,null,null,null,null,null,null,null,null,null,null,null,null,null,null,null,null,null,null,null,null,null,null,"Host institution"]
[null,null,null,null,null,null,null,null,null,null,null,null,null,null,null,null,null,null,null,null,null,null,null,null,null,null,null,null,null,null,null,null,null,null,null,null,null,null,null,null,null,null,null,null,null,null,null,null,null,null,null,null,null,null,null,null,null,null,null,null,null,null,null,null,null,null,null,null,null,null,null,null,null,null,null,null,null,null,null,null,null,null,null,null,null,null,null,null,null,null,null,null,null,null,null,null,null,null,null,null,null,null,null,null,null,null,null,null,null,null,null,null,null,null,null,null,null,null,null,null,null,null,null,null,null,null,null,null,null,null,null,null,null,null,null,null,null,null,null,null,null,null,"Manager","Teacher/Trainer/Researcher","Technician","Administrative staff"]
[null,null,null,null,null,null,null,null,null,null,null,null,null,null,null,null,null,null,null,null,null,null,null,null,null,null,null,null,null,null,null,null,null,null,null,null,null,null,null,null,null,null,null,null,null,null,null,null,null,null,null,null,null,null,null,null,null,null,null,null,null,null,null,null,null,null,null,null,null,null,null,null,null,null,null,null,null,null,null,null,null,null,null,null,null,null,null,null,null,null,null,null,null,null,null,null,null,null,null,null,null,null,null,null,null,null,null,null,null,null,null,null,null,null,null,null,null,null,null,null,null,null,null,null,null,null,null,null,null,null,null,null,null,null,null,null,null,null,null,"Romania ",null,"RO",294,241,190,157,"O1","E1"]
[null,null,null,null,null,null,null,null,null,null,null,null,null,null,null,null,null,null,null,null,null,null,null,null,null,null,null,null,null,null,null,null,null,null,null,null,null,null,null,null,null,null,null,null,null,null,null,null,null,null,null,null,null,null,null,null,null,null,null,null,null,null,null,null,null,null,null,null,null,null,null,null,null,null,null,null,null,null,null,null,null,null,null,null,null,null,null,null,null,null,null,null,null,null,null,null,null,null,null,null,null,null,null,null,null,null,null,null,null,null,null,null,null,null,null,null,null,null,null,null,null,null,null,null,null,null,null,null,null,null,null,null,null,null,null,null,null,null,null,null,"Liechtenstein","LI",294,241,190,157]
[null,null,null,null,null,null,null,null,null,null,null,null,null,null,null,null,null,null,null,null,null,null,null,null,null,null,null,null,null,null,null,null,null,null,null,null,null,null,null,null,null,null,null,null,null,null,null,null,null,null,null,null,null,null,null,null,null,null,null,null,null,null,null,null,null,null,null,null,null,null,null,null,null,null,null,null,null,null,null,null,null,null,null,null,null,null,null,null,null,null,null,null,null,null,null,null,null,null,null,null,null,null,null,null,null,null,null,null,null,null,null,null,null,null,null,null,null,null,null,null,null,null,null,null,null,null,null,null,null,null,null,null,null,null,null,null,null,null,null,null,"Norway","NO",294,241,190,157,"O2","E2"]
[null,null,null,null,null,null,null,null,null,null,null,null,null,null,null,null,null,null,null,null,null,null,null,null,null,null,null,null,null,null,null,null,null,null,null,null,null,null,null,null,null,null,null,null,null,null,null,null,null,null,null,null,null,null,null,null,null,null,null,null,null,null,null,null,null,null,null,null,null,null,null,null,null,null,null,null,null,null,null,null,null,null,null,null,null,null,null,null,null,null,null,null,null,null,null,null,null,null,null,null,null,null,null,null,null,null,null,null,null,null,null,null,null,null,null,null,null,null,null,null,null,null,null,null,null,null,null,null,null,null,null,null,null,null,null,null,null,null,null,null,"Iceland","IS",280,214,162,131,"O3","E3"]
[null,null,"Project no.",null,null,null,null,"FINAL REPORT                                                                                                                                                                                                                    Declaration of expenditure                                                                                                                                                                                         Projects in the field of school education                                                                                                                                                             Call for proposals 2018 Round 2                                                                              "]
[null,null,"Project Title"]
[null,null,"Project duration (from 12-24 months)",null,"months"]
[]
[null,null,"1.Institutions involved in the project"]
[]
[null,null,"Name of the institution                                    (including Project Promoter)","Institution role in project","Country","Town"]
[null,null,null,"Project Promoter"]
[]
[]
[]
[]
[]
[]
[]
[]
[]
[]
[]
[null,null,"2. Costs for the organisational support"]
[]
[null,null,"Name of the institution                                    (including the Project Promoter)","Institution role in project","Number of participants in mobility","Organisational support adjusted (Euro)                   ","Organisational support                                                 (Euro)",null,null,null,null,null,null,null,null,null,null,null,null,null,null,"Grant approved by  PO","Ineligible grant declared by PP","Comments"]
[null,null,null,{"$f":"D21","v":"Project Promoter"},null,null,{"$f":"IF(F36>0,F36,IF(D36=\"Project Promoter\",E36*150,IF(D36=\"Host institution\",E36*200,\" \")))","v":0}]
[null,null,null,null,null,null,{"$f":"IF(F37>0,F37,IF(D37=\"Project Promoter\",E37*150,IF(D37=\"Host institution\",E37*200,\" \")))","v":" "}]
[null,null,null,null,null,null,{"$f":"IF(F38>0,F38,IF(D38=\"Project Promoter\",E38*150,IF(D38=\"Host institution\",E38*200,\" \")))","v":" "}]
[null,null,null,null,null,null," "]
[null,null,null,null,null,null," "]
[null,null,null,null,null,null," "]
[null,null,null,null,null,null," "]
[null,null,null,null,null,null," "]
[null,null,null,null,null,null," "]
[null,null,null,null,null,null," "]
[null,null,null,null,null,null,{"$f":"SUM(G37:G45)","v":0},null,null,null,null,null,null,null,null,null,null,null,null,null,null,{"$f":"SUM(V37:V45)","v":0},{"$f":"SUM(W36:W45)","v":0}]
[]
[null,null,"3. Costs for the participation in structured courses -fees (if applicable)",null,null,null,null,null,null,null,null,"Distance code","Distance band","Euro"]
[null,null,null,null,null,null,null,null,null,null,null,"D1","100-499 km",180]
[null,null,"Name of the institution                             (course provider)                                   ","Structured course title ","Structured course period dd/mm/yyyy - dd/mm/yyyy","Duration (number of days  without travel days)","Number of participants","Total grant adjusted","Total grant ",null,null,"D2","500-1999 km",275,null,null,null,null,null,null,null,"Grant approved by  PO","Ineligible grant declared by PP","Comments"]
[null,null,null,null,null,null,null,null,{"$f":"IF(H51>0,H51,IF(G51>0,F51*G51*70,\" \"))","v":" "},null,null,"D3","2000-2999 km",360]
[null,null,null,null,null,null,null,null,{"$f":"IF(H52>0,H52,IF(G52>0,F52*G52*70,\" \"))","v":" "},null,null,"D4","3000-3999 km",530]
[null,null,null,null,null,null,null,null," ",null,null,"D5","4000-7999 km",820]
[null,null,null,null,null,null,null,null," "]
[null,null,null,null,null,null,null,null," "]
[null,null,null,null,null,null,null,null," "]
[null,null,null,null,null,null,null,null," "]
[null,null,null,null,null,null,null,null," "]
[null,null,null,null,null,null,null,null," "]
[null,null,null,null,null,null,null,null," "]
[null,null,null,null,null,null,null,null," "]
[null,null,null,null,null,{"$f":"SUM(F51:F61)","v":0},{"$f":"SUM(G51:G61)","v":0},null,{"$f":"SUM(I51:I61)","v":0},null,null,null,null,null,null,null,null,null,null,null,null,{"$f":"SUM(V51:V61)","v":0},{"$f":"SUM(W51:W61)","v":0}]
[]
[null,null,"4. Mobility costs for participants"]
[]
[]
[]
[null,null,"Name of the host institution   ","Destination country ","Participant name and surname","Gender","Type of mobility       ","Number of activity days (excluding travel days)  of              structured course","Number of activity days (excluding travel days)  of                     other (job shadowing, seminars, study visit)","Number of travel days      (if applicable)","Total number of days","Individual support (Euro)","Individual support adjusted (Euro)","Distance band","Travel (Euro)          ","Travel adjusted (Euro)","Linguistic support?","Grant for linguistic support (Euro) ","Grant for linguistic support adjusted (Euro)  ","Accompanying person grant (only for special needs)","Total grant","Grant approved by  PO","Ineligible grant declared by PP","Comments",null,null,null,null,null,{"$f":"L68","v":"Individual support (Euro)"},{"$f":"P68","v":"Travel adjusted (Euro)"},{"$f":"R68","v":"Grant for linguistic support (Euro) "}]
[null,null,null,null,null,null,null,null,null,null,{"$f":"H69+I69+J69","v":0},{"$f":"IF(E69>0,K69*200,\" \")","v":" "},null,null,{"$f":"IF(N69=\"100-499 km\",$EV$3,IF(N69=\"500-1999 km\",$EV$4,IF(N69=\"2000-2999 km\",$EV$5,IF(N69=\"3000-3999 km\",$EV$6,IF(N69=\"4000-7999 km\",$EV$7,\" \")))))","v":" "},null,null,{"$f":"IF(Q69=\"Yes\",150,\" \")","v":" "},null,null,{"$f":"IF(E69>0,AD69+AE69+AF69+T69,\" \")","v":" "},null,null,null,null,null,null,null,null,{"$f":"IF(M69>0,M69,L69)","v":" "},{"$f":"IF(N69>0,IF(P69>0,P69,O69),0)","v":0},{"$f":"IF(Q69=\"Yes\",IF(S69>0,S69,R69),0)","v":0}]
[null,null,null,null,null,null,null,null,null,null,0,{"$f":"IF(E70>0,K70*200,\" \")","v":" "},null,null," ",null,null," ",null,null,{"$f":"IF(E70>0,AD70+AE70+AF70+T70,\" \")","v":" "},null,null,null,null,null,null,null,null,{"$f":"IF(M70>0,M70,L70)","v":" "},0,{"$f":"IF(Q70=\"Yes\",IF(S70>0,S70,R70),0)","v":0}]
[null,null,null,null,null,null,null,null,null,null,0," ",null,null," ",null,null," ",null,null," ",null,null,null,null,null,null,null,null," ",0,0]
[null,null,null,null,null,null,null,null,null,null,0," ",null,null," ",null,null," ",null,null," ",null,null,null,null,null,null,null,null," ",0,0]
[null,null,null,null,null,null,null,null,null,null,0," ",null,null," ",null,null," ",null,null," ",null,null,null,null,null,null,null,null," ",0,0]
[null,null,null,null,null,null,null,null,null,null,0," ",null,null," ",null,null," ",null,null," ",null,null,null,null,null,null,null,null," ",{"$f":"IF(N74>0,IF(P74>0,P74,O74),0)","v":0},0]
[null,null,null,null,null,null,null,null,null,null,0," ",null,null," ",null,null," ",null,null," ",null,null,null,null,null,null,null,null," ",{"$f":"IF(N75>0,IF(P75>0,P75,O75),0)","v":0},0]
[null,null,null,null,null,null,null,null,null,null,0," ",null,null," ",null,null," ",null,null," ",null,null,null,null,null,null,null,null," ",0,0]
[null,null,null,null,null,null,null,null,null,null,0," ",null,null," ",null,null," ",null,null," ",null,null,null,null,null,null,null,null," ",0,0]
[null,null,null,null,null,null,null,null,null,null,0," ",null,null," ",null,null," ",null,null," ",null,null,null,null,null,null,null,null," ",0,0]
[null,null,null,null,null,null,null,null,null,null,0," ",null,null," ",null,null," ",null,null," ",null,null,null,null,null,null,null,null," ",0,0]
[null,null,null,null,null,null,null,null,null,null,0," ",null,null," ",null,null," ",null,null," ",null,null,null,null,null,null,null,null," ",0,0]
[null,null,null,null,null,null,null,null,null,null,0," ",null,null," ",null,null," ",null,null," ",null,null,null,null,null,null,null,null," ",0,0]
[null,null,null,null,null,null,null,null,null,null,0," ",null,null," ",null,null," ",null,null," ",null,null,null,null,null,null,null,null," ",0,0]
[null,null,null,null,null,null,null,null,null,null,0," ",null,null," ",null,null," ",null,null," ",null,null,null,null,null,null,null,null," ",0,0]
[null,null,null,null,null,null,null,null,null,null,0," ",null,null," ",null,null," ",null,null," ",null,null,null,null,null,null,null,null," ",0,0]
[null,null,null,null,null,null,null,null,null,null,0," ",null,null," ",null,null," ",null,null," ",null,null,null,null,null,null,null,null," ",0,0]
[null,null,null,null,null,null,null,null,null,null,0," ",null,null," ",null,null," ",null,null," ",null,null,null,null,null,null,null,null," ",0,0]
[null,null,null,null,null,null,null,null,null,null,0," ",null,null," ",null,null," ",null,null," ",null,null,null,null,null,null,null,null," ",0,0]
[null,null,null,null,null,null,null,null,null,null,0," ",null,null," ",null,null," ",null,null," ",null,null,null,null,null,null,null,null," ",0,0]
[null,null,null,null,null,null,null,null,null,null,0," ",null,null," ",null,null," ",null,null," ",null,null,null,null,null,null,null,null," ",0,0]
[null,null,null,null,null,null,null,null,null,null,{"$f":"SUM(K69:K89)","v":0},{"$f":"AD90","v":0},null,null,{"$f":"AE90","v":0},null,null,{"$f":"AF90","v":0},null,{"$f":"SUM(T69:T89)","v":0},{"$f":"SUM(U69:U89)","v":0},{"$f":"SUM(V69:V89)","v":0},{"$f":"SUM(W69:W89)","v":0},null,null,null,null,null,null,{"$f":"SUM(AD69:AD89)","v":0},{"$f":"SUM(AE69:AE89)","v":0},{"$f":"SUM(AF69:AF89)","v":0}]
[]
[]
[]
[null,null,"5. Special needs support (real costs)"]
[]
[null,null,"Name of the Project Promoter   ",null,"Participant name and surname  (with special needs)","Additional costs description",null,"Grant  (Euro)",null,null,null,null,null,null,null,null,null,null,null,null,null,"Grant approved by  PO","Ineligible grant declared by PP","Comments"]
[]
[]
[]
[]
[]
[null,null,null,null,null,null,null,{"$f":"SUM(H97:H101)","v":0},null,null,null,null,null,null,null,null,null,null,null,null,null,{"$f":"SUM(V97:V101)","v":0},{"$f":"SUM(W97:W101)","v":0}]
[]
[]
[null,null,"6. Budget Summary"]
[]
[null,null,"Expenditure",null,{"$f":"$C21","v":0},{"$f":"C22","v":0},{"$f":"$C23","v":0},{"$f":"$C24","v":0},{"$f":"$C25","v":0},"Total grant ",null,null,null,null,null,null,null,null,null,null,null,"Grant approved by  PO","Ineligible grant declared by PP","Comments"]
[null,null,"Organisational support (project promoter)",null,{"$f":"G36","v":0},null,null,null,null,{"$f":"E108","v":0},null,null,null,null,null,null,null,null,null,null,null,{"$f":"G36","v":0}]
[null,null,"Organisational support ( host institutions)",null,null,{"$f":" SUMIF($C$36:$C$45,F107,$G$36:$H$45)","v":0},{"$f":" SUMIF($C$36:$C$45,G107,$G$36:$H$45)","v":0},{"$f":" SUMIF($C$36:$C$45,H107,$G$36:$H$45)","v":0},{"$f":" SUMIF($C$36:$C$45,I107,$G$36:$H$45)","v":0},{"$f":"SUM(F109:I109)","v":0},null,null,null,null,null,null,null,null,null,null,null,{"$f":"SUM(V37:V45)","v":0}]
[null,null,"Course fees",null,null,{"$f":" SUMIF($C$51:$C$61,F107,$I$51:$I$61)","v":0},{"$f":" SUMIF($C$51:$C$61,G107,$I$51:$I$61)","v":0},{"$f":" SUMIF($C$51:$C$61,H107,$I$51:$I$61)","v":0},{"$f":" SUMIF($C$51:$C$61,I107,$I$51:$I$61)","v":0},{"$f":"SUM(F110:I110)","v":0},null,null,null,null,null,null,null,null,null,null,null,{"$f":"V62","v":0}]
[null,null,"Individual support",null,{"$f":"L90","v":0},null,null,null,null,{"$f":"E111","v":0},null,null,null,null,null,null,null,null,null,null,null,{"$f":"V90","v":0}]
[null,null," Travel costs",null,{"$f":"O90","v":0},null,null,null,null,{"$f":"E112","v":0}]
[null,null,"Linguistic support",null,{"$f":"R90","v":0},null,null,null,null,0]
[null,null,"Special needs",null,{"$f":"H102+T90","v":0},null,null,null,null,0,null,null,null,null,null,null,null,null,null,null,null,{"$f":"V102","v":0}]
[null,null,"Total grant used                                             ",null,{"$f":"SUM(E108:E114)","v":0},{"$f":"F109+F110","v":0},{"$f":"G109+G110","v":0},0,0,{"$f":"SUM(J108:J114)","v":0},null,null,null,null,null,null,null,null,null,null,null,{"$f":"SUM(V108:V114)","v":0},{"$f":"SUM(W108:W114)","v":0}]

{"sheet":"INFO","index":2,"n_rows":14,"n_cols":13,"rows_kept":14,"cut":false,"hidden":true,"merged":[]}
[]
[null,"Distance band","Distance code","Euro",null,null,null,null,null,null,null,"Country ","Country code"]
[null,"100-499 km","D1",180,null,null,null,null,null,null,null,"Liechtenstein","LI"]
[null,"500-1999 km","D2",275,null,null,null,null,null,null,null,"Norway","NO"]
[null,"2000-2999 km","D3",360,null,null,null,null,null,null,null,"Iceland","IS"]
[null,"3000-3999 km","D4",530]
[null,"4000-7999 km","D5",820]
[]
[null,"Type of Mobility"]
[null,"Job shadowing"]
[null,"Structured course"]
[null,"Study visit"]
[null,"Seminar"]
[null,"Mixed (structured course+job shadowing/ study visit / seminar)",null,null,null,null,null,null,null,null,null,"Romania","RO"]